fUSD/lending_fUSD_20260421
["ID","MTS","AMOUNT","RATE_DAILY","PERIOD"]
[420905896,1776703981234,-151.0,0.00024049,2]
[420905897,1776703981244,-151.0,0.0002405,2]
[420905898,1776703981254,-151.0,0.0002405,2]
[420905899,1776703981264,-151.0,0.00024051,2]
[420905900,1776703981274,-151.0,0.00024051,2]
[420905901,1776703981284,-151.0,0.00024051,2]
[420905902,1776703981294,-151.0,0.00024051,2]
[420905903,1776703981305,-151.0,0.00024054,2]
[420905904,1776703981314,-151.0,0.00024059,2]
[420905905,1776703981324,-151.0,0.00024061,2]
[420905906,1776703981334,-151.0,0.00024061,2]
[420905907,1776703981346,-1050.0,0.0002411,2]
[420905908,1776703981357,-504.0,0.00024201,11]
[420905909,1776703981367,-832.48,0.000243,7]
[420905910,1776703981377,-778.67,0.00024499,2]
[420905911,1776703981388,-3961.9,0.000245,2]
[420905912,1776703981397,-19405.07,0.000245,2]
[420905913,1776703981408,-2284.16,0.000245,2]
[420905914,1776703981420,-4150.7,0.000245,2]
[420905915,1776703981430,-4425.76,0.000245,7]
[420905916,1776703981440,-223.8,0.0002463,2]
[420905917,1776703981450,-2306.5,0.0002463,2]
[420905918,1776703981460,-1024.5,0.0002463,2]
[420905919,1776703981470,-1065.0,0.0002463,2]
[420905920,1776703981482,-1966.0,0.0002463,2]
[420905921,1776703981492,-1840.5,0.0002463,2]
[420905922,1776703981503,-2329.16847691,0.0002463,2]
[420905923,1776703981514,-1164.58423846,0.0002463,2]
[420905924,1776703981525,-357.50640245,0.0002463,2]
[420905925,1776703981535,-1325.5,0.0002463,2]
[420905926,1776703981546,-1053.79007438,0.00024658,2]
[420905927,1776703981556,-1000.0,0.00024658,2]
[420905928,1776703981568,-150.0,0.00024658,2]
[420905929,1776703981578,-1038.02,0.00024658,2]
[420905930,1776703981588,-500.0,0.00024699,2]
[420905931,1776703981599,-500.0,0.00024699,2]
[420905932,1776703981609,-1145.0,0.00024699,2]
[420905933,1776703981619,-668.22,0.00024699,2]
[420905934,1776703981630,-247.77704402,0.00024699,2]
[420905935,1776703981639,-2675.56,0.000247,7]
[420905936,1776703981650,-140522.08,0.000247,7]
[420905937,1776703981662,-2500.0,0.0002475,2]
[420905938,1776703981672,-950.0,0.0002475,2]
[420905939,1776703981682,-1350.0,0.0002475,7]
[420905940,1776703981692,-6919.9,0.00024847,2]
[420905941,1776703981703,-151.0,0.00024855,2]
[420905942,1776703981713,-151.0,0.00024872,2]
[420905943,1776703981723,-151.0,0.00024872,2]
[420905944,1776703981733,-151.0,0.00024873,2]
[420905945,1776703981743,-638.27,0.00024874,2]
[420905946,1776703981752,-183.38,0.00024875,2]
[420905947,1776703981763,-151.0,0.00024875,2]
[420905948,1776703981772,-570.35,0.00024875,2]
[420905949,1776703981782,-151.0,0.0002488,2]
[420905950,1776703981792,-477.92,0.00024881,2]
[420905951,1776703981802,-151.0,0.00024882,2]
[420905952,1776703981811,-570.35,0.00024883,2]
[420905953,1776703981821,-570.35,0.00024885,2]
[420905954,1776703981831,-151.0,0.00024885,2]
[420905955,1776703981840,-151.0,0.00024886,2]
[420905956,1776703981851,-778.67,0.00024899,2]
[420905957,1776703981861,-778.67,0.00024899,2]
[420905958,1776703981871,-778.67,0.00024899,2]
[420905959,1776703981881,-778.67,0.00024899,2]
[420905960,1776703981891,-778.67,0.00024899,2]
[420905961,1776703981901,-778.84799394,0.00024899,2]
[420905962,1776703981911,-1080.98902362,0.000249,2]
[420905963,1776703981921,-13300.0,0.000249,9]
[420905964,1776703981931,-504.0,0.00024966,12]
[420905965,1776703981940,-68812.16385677,0.00025,2]
[420905966,1776703981950,-5000.0,0.00025,15]
[420905967,1776703981959,-1342.01304581,0.00025,4]
[420905968,1776703981969,-632.22055934,0.00025,2]
[420905969,1776703981979,-550.0,0.00025,2]
[420905970,1776703981988,-619.0,0.00025,2]
[420905971,1776703981999,-310.0,0.00025,2]
[420905972,1776703982009,-212.35312708,0.00025,2]
[420905973,1776703982019,-500.0,0.00025003,120]
[420905974,1776703982030,-500.0,0.00025178,2]
[420905975,1776703982445,-3003.14,0.000252,2]
[420905976,1776703982457,-234.21,0.00025548,2]
[420905977,1776703982468,-151.0,0.00025676,2]
[420905978,1776703982478,-151.0,0.00025694,2]
[420905979,1776703982488,-477.92,0.00025695,2]
[420905980,1776703982498,-570.35,0.00025696,2]
[420905981,1776703982508,-151.0,0.00025696,2]
[420905982,1776703982518,-183.38,0.00025697,2]
[420905983,1776703982528,-183.38,0.00025698,2]
[420905984,1776703982537,-392.61,0.00025698,2]
[420905985,1776703982547,-477.92,0.000257,2]
[420905986,1776703982557,-570.35,0.00025702,2]
[420905987,1776703982567,-568.11,0.00025704,2]
[420905988,1776703982577,-477.92,0.00025707,2]
[420905989,1776703982587,-504.0,0.0002573,12]
[420905990,1776703982597,-2017.72,0.000258,7]
[420905991,1776703982607,-150.0,0.0002589,2]
[420905992,1776703982616,-6919.9,0.00025898,2]
[420905993,1776703982627,-832.48,0.000259,7]
[420905994,1776703982637,-150.0,0.00026027,2]
[420905995,1776703982646,-196.0,0.00026027,2]
[420905996,1776703982655,-150.0,0.00026081,30]
[420905997,1776703982665,-373.94158241,0.00026178,4]
[420905998,1776703982675,-4425.76,0.000262,7]
[420905999,1776703982685,-504.0,0.00026494,13]
[420906000,1776703982695,-500.0,0.00026499,2]
[420906001,1776703982704,-500.0,0.00026499,2]
[420906002,1776703982714,-1145.0,0.00026499,2]
[420906003,1776703982724,-668.22,0.00026499,2]
[420906004,1776703982734,-140522.08,0.000265,7]
[420906005,1776703982744,-264.45,0.00026515,2]
[420906006,1776703982755,-151.0,0.00026515,2]
[420906007,1776703982764,-151.0,0.00026515,2]
[420906008,1776703982775,-638.27,0.00026515,2]
[420906009,1776703982785,-183.38,0.00026516,2]
[420906010,1776703982795,-183.38,0.00026516,2]
[420906011,1776703982805,-570.35,0.00026517,2]
[420906012,1776703982815,-568.11,0.00026517,2]
[420906013,1776703982825,-568.11,0.00026518,2]
[420906014,1776703982835,-183.38,0.00026519,2]
[420906015,1776703982845,-477.92,0.0002652,2]
[420906016,1776703982855,-477.92,0.00026522,2]
[420906017,1776703982865,-183.38,0.00026522,2]
[420906018,1776703982876,-568.11,0.00026524,2]
[420906019,1776703982887,-183.38,0.00026525,2]
[420906020,1776703982897,-332.33,0.00026526,2]
[420906021,1776703982907,-477.92,0.00026529,2]
[420906022,1776703982918,-568.11,0.00026548,2]
[420906023,1776703982928,-638.27,0.00026548,2]
[420906024,1776703982938,-638.27,0.00026548,2]
[420906025,1776703982947,-151.0,0.00026556,2]
[420906026,1776703982958,-2675.56,0.000268,7]
[420906027,1776703982968,-1690.97304321,0.00026808,2]
[420906028,1776703982978,-6919.9,0.00026949,2]
[420906029,1776703982988,-1136.569027,0.00027,2]
[420906030,1776703982999,-5000.0,0.00027,15]
[420906031,1776703983010,-600.0,0.00027,2]
[420906032,1776703983020,-1218.48987383,0.00027013,2]
[420906033,1776703983030,-832.48,0.000271,7]
[420906034,1776703983041,-3468.52870165,0.0002716,2]
[420906035,1776703983051,-150.0,0.00027185,2]
[420906036,1776703983062,-2444.54822313,0.000272,5]
[420906037,1776703983072,-500.0,0.00027223,120]
[420906038,1776703983083,-504.0,0.00027259,14]
[420906039,1776703983092,-4425.76,0.000273,7]
[420906040,1776703983102,-151.0,0.00027315,2]
[420906041,1776703983112,-477.91,0.00027336,2]
[420906042,1776703983122,-183.38,0.00027336,2]
[420906043,1776703983132,-477.92,0.00027336,2]
[420906044,1776703983142,-478.51,0.00027337,2]
[420906045,1776703983152,-151.0,0.00027337,2]
[420906046,1776703983162,-570.35,0.00027338,2]
[420906047,1776703983172,-638.27,0.00027338,2]
[420906048,1776703983182,-477.92,0.00027338,2]
[420906049,1776703983192,-332.33,0.00027338,2]
[420906050,1776703983202,-570.35,0.00027338,2]
[420906051,1776703983211,-568.11,0.00027339,2]
[420906052,1776703983221,-332.33,0.00027339,2]
[420906053,1776703983231,-638.26,0.0002734,2]
[420906054,1776703983241,-332.33,0.0002734,2]
[420906055,1776703983251,-638.27,0.0002734,2]
[420906056,1776703983260,-570.36,0.0002734,2]
[420906057,1776703983270,-638.25,0.0002734,2]
[420906058,1776703983279,-568.11,0.00027341,2]
[420906059,1776703983289,-332.33,0.00027341,2]
[420906060,1776703983298,-638.27,0.00027341,2]
[420906061,1776703983308,-477.92,0.00027341,2]
[420906062,1776703983318,-332.33,0.00027341,2]
[420906063,1776703983328,-332.33,0.00027341,2]
[420906064,1776703983337,-332.33,0.00027347,2]
[420906065,1776703983347,-332.33,0.00027347,2]
[420906066,1776703983357,-332.33,0.00027347,2]
[420906067,1776703983368,-183.38,0.00027347,2]
[420906068,1776703983378,-570.35,0.00027347,2]
[420906069,1776703983389,-568.11,0.00027351,2]
[420906070,1776703983399,-570.35,0.00027351,2]
[420906071,1776703983410,-638.27,0.00027358,2]
[420906072,1776703983419,-477.92,0.00027358,2]
[420906073,1776703983429,-477.92,0.00027359,2]
[420906074,1776703983439,-151.0,0.00027378,2]
[420906075,1776703983448,-980.4,0.00027397,7]
[420906076,1776703983458,-2696.09,0.00027397,7]
[420906077,1776703983468,-500.0,0.00027397,2]
[420906078,1776703983478,-334.16512783,0.00027397,2]
[420906079,1776703983488,-1000.0,0.00027397,20]
[420906080,1776703983502,-524.51,0.00027397,2]
[420906081,1776703983511,-300.0,0.00027397,2]
[420906082,1776703983521,-1014.07,0.00027397,2]
[420906083,1776703983531,-1038.02,0.00027397,2]
[420906084,1776703983541,-18436.02,0.00027397,10]
[420906085,1776703983550,-318.07917198,0.00027397,2]
[420906086,1776703983560,-15363.35,0.00027397,10]
[420906087,1776703983571,-200.03245678,0.00027397,5]
[420906088,1776703983581,-452.51069168,0.00027654,2]
[420906089,1776703983591,-250.0,0.00027671,12]
[420906090,1776703983602,-500.0,0.00027702,4]
[420906091,1776703983612,-500.0,0.00027702,4]
[420906092,1776703983623,-500.0,0.00027702,4]
[420906093,1776703983633,-500.0,0.00027702,4]
[420906094,1776703983643,-500.0,0.00027702,4]
[420906095,1776703983652,-500.0,0.00027702,4]
[420906096,1776703983663,-500.0,0.00027702,4]
[420906097,1776703983674,-500.0,0.00027702,4]
[420906098,1776703983684,-500.0,0.00027702,4]
[420906099,1776703983693,-500.0,0.00027702,4]
[420906100,1776703983703,-406.97,0.00027702,4]
[420906101,1776703983713,-250.0,0.00027726,12]
[420906102,1776703983723,-250.0,0.00027726,12]
[420906103,1776703983734,-2017.72,0.000278,7]
[420906104,1776703983744,-300.0,0.00027808,10]
[420906105,1776703983753,-300.0,0.00027808,10]
[420906106,1776703983764,-249.5,0.00027836,12]
[420906107,1776703983773,-300.0,0.0002789,10]
[420906108,1776703983783,-1145.0,0.00027923,2]
[420906109,1776703983793,-1145.0,0.00027923,2]
[420906110,1776703983803,-1145.0,0.00027923,2]
[420906111,1776703983812,-1145.0,0.00027923,2]
[420906112,1776703983822,-1145.03210014,0.00027923,2]
[420906113,1776703983831,-668.22,0.00027923,7]
[420906114,1776703983841,-668.22,0.00027923,7]
[420906115,1776703983853,-668.22,0.00027923,7]
[420906116,1776703983863,-668.22,0.00027923,7]
[420906117,1776703983873,-668.23629806,0.00027923,7]
[420906118,1776703983884,-2000.0,0.00027924,8]
[420906119,1776703983893,-300.0,0.00027945,10]
[420906120,1776703983904,-250.0,0.00027945,10]
[420906121,1776703983915,-400.0,0.0002797,2]
[420906122,1776703983925,-300.0,0.0002797,2]
[420906123,1776703983935,-152.0,0.00027973,3]
[420906124,1776703983944,-152.0,0.00027973,5]
[420906125,1776703983954,-4931.89,0.0002799,2]
[420906126,1776703983964,-500.0,0.00027998,120]
[420906127,1776703983975,-500.0,0.00027998,2]
[420906128,1776703983984,-151.0,0.00028,2]
[420906129,1776703983994,-24140.81858845,0.00028,3]
[420906130,1776703984505,-386.23515945,0.00028,3]
[420906131,1776703985420,-4047.0,0.00011682,2]
[420906132,1776703985454,-1983.0,0.00011682,2]
[420906133,1776703985464,-6030.0,0.00014682,2]
[420906134,1776703985475,-750.0,0.00015304,2]
[420906135,1776703985484,-750.0,0.00015304,2]
[420906136,1776703985494,-750.0,0.00015304,2]
[420906137,1776703985503,-44314.92658669,0.00028,3]
[420906138,1776703985512,-160.1361403,0.00028,2]
[420906139,1776703985522,-5000.0,0.00028,15]
[420906140,1776703985533,-211.9,0.00028,2]
[420906141,1776703985542,-252.4,0.00028,9]
[420906142,1776703985552,-160.0,0.00028,10]
[420906143,1776703985560,-140522.08,0.00028,7]
[420906144,1776703985570,-6919.9,0.00028,2]
[420906145,1776703985579,-570.41,0.00028,2]
[420906146,1776703985589,-570.41,0.00028,2]
[420906147,1776703985599,-570.41,0.00028,2]
[420906148,1776703985609,-570.41,0.00028,2]
[420906149,1776703985618,-570.41,0.00028,2]
[420906150,1776703985628,-570.41,0.00028,2]
[420906151,1776703985637,-800.0,0.00028,7]
[420906152,1776703985647,-800.0,0.00028,7]
[420906153,1776703985656,-453.58644714,0.00028,7]
[420906154,1776703985666,-504.0,0.00028023,14]
[420906155,1776703985675,-568.11,0.00028155,2]
[420906156,1776703985685,-183.38,0.00028155,2]
[420906157,1776703985695,-183.38,0.00028159,2]
[420906158,1776703985705,-638.27,0.0002816,2]
[420906159,1776703985714,-183.38,0.0002816,2]
[420906160,1776703985724,-638.27,0.0002816,2]
[420906161,1776703985733,-183.38,0.0002816,2]
[420906162,1776703985743,-568.11,0.0002816,2]
[420906163,1776703985753,-332.33,0.0002816,2]
[420906164,1776703985763,-570.35,0.00028161,2]
[420906165,1776703985773,-477.92,0.00028162,2]
[420906166,1776703985783,-477.92,0.00028162,2]
[420906167,1776703985792,-477.92,0.00028162,2]
[420906168,1776703985801,-332.33,0.00028162,2]
[420906169,1776703985811,-638.27,0.00028162,2]
[420906170,1776703985821,-332.33,0.00028162,2]
[420906171,1776703985829,-183.38,0.00028162,2]
[420906172,1776703985839,-638.27,0.00028162,2]
[420906173,1776703985848,-568.11,0.00028162,2]
[420906174,1776703985858,-570.35,0.00028162,2]
[420906175,1776703985868,-183.38,0.00028162,2]
[420906176,1776703985877,-568.11,0.00028163,2]
[420906177,1776703985886,-568.11,0.00028163,2]
[420906178,1776703985896,-477.92,0.00028163,2]
[420906179,1776703985905,-568.11,0.00028164,2]
[420906180,1776703985915,-570.35,0.00028167,2]
[420906181,1776703985925,-568.11,0.00028167,2]
[420906182,1776703985934,-568.96,0.00028168,2]
[420906183,1776703985945,-568.11,0.00028169,2]
[420906184,1776703985954,-570.35,0.00028169,2]
[420906185,1776703985964,-568.11,0.0002817,2]
[420906186,1776703985975,-332.35,0.00028173,2]
[420906187,1776703985985,-638.27,0.00028173,2]
[420906188,1776703985994,-477.92,0.00028173,2]
[420906189,1776703986004,-437.41,0.0002818,2]
[420906190,1776703986014,-332.33,0.00028181,2]
[420906191,1776703986023,-332.33,0.0002819,2]
[420906192,1776703986033,-183.38,0.00028192,2]
[420906193,1776703986042,-183.38,0.00028192,2]
[420906194,1776703986052,-570.35,0.00028192,2]
[420906195,1776703986062,-183.38,0.00028192,2]
[420906196,1776703986071,-150.0,0.00028196,30]
[420906197,1776703986081,-183.38,0.000282,2]
[420906198,1776703986091,-234.21,0.00028493,2]
[420906199,1776703986101,-520.79521039,0.00028499,120]
[420906200,1776703986110,-478.0,0.00028499,2]
[420906201,1776703986120,-1160534.04731564,0.000285,2]
[420906202,1776703987279,-273.0,0.00015304,2]
[420906203,1776703987290,-200.0,0.00017404,2]
[420906204,1776703987300,-200.0,0.00017404,2]
[420906205,1776703987310,-52.3672,0.00017682,2]
[420906206,1776703987359,-1538.77951083,0.00017682,2]
[420906207,1776703987660,-200.0,0.00017404,2]
[420906208,1776703987671,-4438.85328917,0.00017682,2]
[420906209,1776703987682,-6030.0,0.00020682,2]
[420906210,1776703987692,-6030.0,0.00023682,2]
[420906211,1776703987703,-6030.0,0.00026682,2]
[420906212,1776703987713,-21925.0427726,0.000285,2]
[420906213,1776703987724,-613.97932853,0.000285,2]
[420906214,1776703987940,-2271.0,0.000285,2]
[420906215,1776703987958,-2843.36225276,0.000285,2]
[420906216,1776703993191,150.0,8.128e-05,2]
[420906217,1776703994147,1614.37,7.835e-05,2]
[420906219,1776703997505,514.89164187,8.203e-05,2]
[420906220,1776704005601,3310.15,7.898e-05,2]
[420906221,1776704005644,255.189,7.898e-05,2]
[420906222,1776704020442,193.0,7.897e-05,2]
[420906223,1776704021363,5000.0,7.897e-05,2]
[420906224,1776704022439,250.0,7.897e-05,2]
[420906225,1776704028434,150.0,8.22e-05,2]
[420906226,1776704030875,509.288,1.18e-06,120]
[420906227,1776704048735,250.0,1.3e-06,2]
[420906228,1776704061969,493.7302,8.129e-05,2]
[420906229,1776704065142,97.9408,5e-05,2]
[420906230,1776704065164,52.0592,5e-05,2]
[420906231,1776704070910,9947.9508,8.129e-05,2]
[420906232,1776704070937,10000.01,8.129e-05,2]
[420906233,1776704070962,10000.01,8.129e-05,2]
[420906234,1776704070989,10000.01,8.129e-05,2]
[420906235,1776704071014,10000.01,8.129e-05,2]
[420906236,1776704071040,10000.01,8.129e-05,2]
[420906237,1776704071066,10000.01,8.129e-05,2]
[420906238,1776704071092,10000.01,8.129e-05,2]
[420906239,1776704071118,10000.01,8.129e-05,2]
[420906240,1776704071143,10000.01,8.129e-05,2]
[420906241,1776704071168,10000.01,8.129e-05,2]
[420906242,1776704071194,10000.01,8.129e-05,2]
[420906243,1776704071219,10000.01,8.129e-05,2]
[420906244,1776704071244,10000.01,8.129e-05,2]
[420906245,1776704071271,1872033.70420093,8.129e-05,2]
[420906246,1776704071306,488018.21499907,8.129e-05,2]
[420906247,1776704072476,300.0,8.128e-05,2]
[420906248,1776704076187,150.0,8.22e-05,2]
[420906249,1776704079594,1200.0,8.128e-05,2]
[420906250,1776704082396,150.0,8.128e-05,2]
[420906251,1776704084169,53914.148,8.129e-05,2]
[420906252,1776704091092,150.0,5e-05,2]
[420906256,1776704104770,91126.9,8.128e-05,2]
[420906257,1776704148885,500.0,8.128e-05,2]
[420906258,1776704148926,580.04999273,8.219e-05,2]
[420906259,1776704149242,501.4898453,8.128e-05,2]
[420906260,1776704150179,316.96226414,8.128e-05,2]
[420906261,1776704150235,500.0,8.128e-05,2]
[420906262,1776704150298,500.0,8.128e-05,2]
[420906263,1776704150343,500.0,8.128e-05,2]
[420906264,1776704150396,500.0,8.128e-05,2]
[420906265,1776704150495,500.0,8.128e-05,2]
[420906266,1776704150565,405.63972753,8.128e-05,2]
[420906267,1776704150637,500.0,8.128e-05,2]
[420906268,1776704150717,500.0,8.128e-05,2]
[420906269,1776704150770,500.0,8.128e-05,2]
[420906270,1776704150827,500.0,8.128e-05,2]
[420906271,1776704150944,500.0,8.128e-05,2]
[420906272,1776704151009,500.0,8.128e-05,2]
[420906273,1776704151104,500.0,8.128e-05,2]
[420906274,1776704151186,500.0,8.128e-05,2]
[420906275,1776704151264,166.0,8.128e-05,3]
[420906276,1776704151329,500.0,8.128e-05,2]
[420906277,1776704151427,500.0,8.128e-05,2]
[420906278,1776704151495,500.0,8.128e-05,2]
[420906279,1776704151562,500.0,8.128e-05,2]
[420906280,1776704151624,500.0,8.128e-05,2]
[420906281,1776704152026,500.0,8.128e-05,2]
[420906282,1776704152101,500.0,8.128e-05,2]
[420906283,1776704152183,500.0,8.128e-05,2]
[420906284,1776704152274,500.0,8.128e-05,2]
[420906285,1776704152396,500.0,8.128e-05,2]
[420906286,1776704152491,500.0,8.128e-05,2]
[420906287,1776704152567,428.61324823,8.128e-05,2]
[420906288,1776704152645,500.0,8.128e-05,2]
[420906290,1776704159240,500.0,8.129e-05,2]
[420906291,1776704166260,450.0,8.128e-05,2]
[420906292,1776704166299,214.33677604,8.128e-05,2]
[420906293,1776704166335,500.0,8.219e-05,2]
[420906294,1776704166408,353.44998305,8.219e-05,2]
[420906296,1776704298515,23762.41122549,8e-05,2]
[420906301,1776704317666,150.0,8.22e-05,2]
[420906303,1776704434277,394.49566316,7.888e-05,2]
[420906304,1776704442587,150.0,8.22e-05,2]
[420906308,1776704449245,-152.0,8.268e-05,7]
[420906309,1776704449278,-500.0,8.268e-05,2]
[420906310,1776704449307,-500.0,8.268e-05,2]
[420906311,1776704449336,-500.0,8.268e-05,2]
[420906312,1776704449365,-224.71404859,8.268e-05,2]
[420906313,1776704449397,-155.44,8.448e-05,2]
[420906314,1776704449428,-300.0,8.644e-05,2]
[420906315,1776704449459,-150.0,8.688e-05,2]
[420906316,1776704449489,-289.9,8.82e-05,2]
[420906317,1776704449519,-300.0,8.969e-05,2]
[420906318,1776704449551,-150.0,8.988e-05,2]
[420906319,1776704449583,-300.0,9.093e-05,2]
[420906320,1776704449613,-300.0,9.094e-05,2]
[420906321,1776704449644,-1200.0,9.094e-05,2]
[420906322,1776704449675,-300.0,9.094e-05,2]
[420906323,1776704449705,-300.0,9.094e-05,2]
[420906324,1776704449735,-3058.02999062,9.095e-05,2]
[420906325,1776704449766,-250.0,9.095e-05,2]
[420906326,1776704449797,-578.20924308,9.171e-05,2]
[420906327,1776704449828,-500.0,9.171e-05,2]
[420906328,1776704449859,-500.0,9.226e-05,2]
[420906329,1776704449889,-500.0,9.281e-05,2]
[420906330,1776704449919,-500.0,9.336e-05,2]
[420906331,1776704449949,-150.0,9.336e-05,2]
[420906332,1776704449979,-500.0,9.391e-05,2]
[420906333,1776704450009,-500.0,9.446e-05,2]
[420906334,1776704450039,-500.0,9.501e-05,2]
[420906335,1776704450071,-500.0,9.556e-05,2]
[420906336,1776704450102,-500.0,9.611e-05,2]
[420906337,1776704450132,-500.0,9.666e-05,2]
[420906338,1776704450163,-591.35431746,9.721e-05,2]
[420906339,1776704450194,-300.0,9.79e-05,2]
[420906340,1776704450224,-300.0,9.79e-05,2]
[420906341,1776704450254,-300.0,9.79e-05,2]
[420906342,1776704450285,-1600.0,9.814e-05,2]
[420906343,1776704450315,-150.0,9.814e-05,2]
[420906344,1776704450346,-300.0,9.835e-05,2]
[420906345,1776704450377,-1064.97512716,9.835e-05,2]
[420906346,1776704450406,-260.0,9.863e-05,2]
[420906347,1776704450436,-420.0,0.00010002,2]
[420906348,1776704450467,-1680.0,0.00010003,2]
[420906349,1776704450497,-199.0,0.00010003,2]
[420906350,1776704450527,-420.0,0.00010003,2]
[420906351,1776704450558,-250.36715048,0.00010192,2]
[420906352,1776704450887,-1802.22445516,0.0001025,2]
[420906353,1776704450919,-5992.21,0.0001025,2]
[420906354,1776704450953,-1802.7960575,0.0001025,2]
[420906355,1776704450985,-255.0,0.00010795,2]
[420906356,1776704451015,-299.99,0.000109,2]
[420906357,1776704451046,-9999.99,0.000109,2]
[420906358,1776704451080,-152.0,0.00010902,7]
[420906359,1776704451111,-2351.0,0.00011003,2]
[420906360,1776704451142,-180.0,0.00011003,2]
[420906361,1776704451174,-377.0,0.00011003,2]
[420906362,1776704451205,-1600.0,0.0001104,2]
[420906363,1776704451236,-151.0,0.00011453,2]
[420906364,1776704451267,-174.61919141,0.00011453,2]
[420906365,1776704451297,-9999.99,0.0001146,2]
[420906366,1776704451327,-999.99,0.0001146,2]
[420906367,1776704451357,-150.99,0.0001146,2]
[420906368,1776704451387,-9999.99,0.0001146,2]
[420906369,1776704451416,-478.0,0.00011506,2]
[420906370,1776704451447,-2854.93,0.00011507,2]
[420906371,1776704451479,-151.0,0.00011508,2]
[420906372,1776704451508,-151.0,0.00011563,2]
[420906373,1776704451539,-151.0,0.00011618,2]
[420906374,1776704451570,-289.0,0.00011638,2]
[420906376,1776704451609,-150.0,0.0001167,2]
[420906378,1776704451641,-151.0,0.00011673,2]
[420906380,1776704451672,-273.0,0.00011682,2]
[420906382,1776704451702,-204.027,0.00011682,2]
[420906383,1776704451732,-150.406,0.00011682,2]
[420906384,1776704451763,-151.0,0.00011728,2]
[420906385,1776704451794,-151.0,0.00011783,2]
[420906386,1776704451824,-151.0,0.00011838,2]
[420906387,1776704451855,-195.0,0.00011874,2]
[420906388,1776704451886,-151.0,0.00011893,2]
[420906389,1776704451916,-25198.98742349,0.000119,2]
[420906390,1776704451947,-6026.64484481,0.000119,2]
[420906391,1776704451977,-6081.26379209,0.000119,2]
[420906392,1776704452006,-599.60298507,0.0001191,2]
[420906393,1776704452039,-151.0,0.00011948,2]
[420906394,1776704452070,-319.72343451,0.0001199,2]
[420906395,1776704452102,-250.0,0.00011999,2]
[420906396,1776704452136,-177.21212772,0.00011999,2]
[420906397,1776704452171,-150.03574322,0.00011999,2]
[420906398,1776704452203,-500.0,0.00011999,2]
[420906399,1776704452235,-500.0,0.00011999,2]
[420906400,1776704452266,-500.0,0.00011999,2]
[420906401,1776704452297,-166.04289171,0.00011999,2]
[420906402,1776704452329,-500.0,0.00011999,2]
[420906403,1776704452361,-153.44998305,0.00011999,2]
[420906404,1776704452398,-500.0,0.00011999,2]
[420906405,1776704452438,-500.0,0.00011999,2]
[420906406,1776704452474,-500.0,0.00011999,2]
[420906407,1776704452511,-500.0,0.00011999,2]
[420906408,1776704452551,-500.0,0.00011999,2]
[420906409,1776704452589,-500.0,0.00011999,2]
[420906410,1776704452628,-500.0,0.00011999,2]
[420906411,1776704452668,-500.0,0.00011999,2]
[420906412,1776704452707,-492.86132483,0.00011999,2]
[420906413,1776704452744,-500.0,0.00011999,2]